bitfinex-derivatives/quotes_BTCF0:USTF0_20250930
["timestamp","ask_amount","ask_price","bid_price","bid_amount"]
[1759246765173,0.52958732,113140.0,113130.0,0.57196068]
[1759246765373,0.52958732,113140.0,113130.0,1.3518793]
[1759246765374,0.02211,113140.0,113130.0,1.3518793]
[1759246768193,0.02211,113140.0,113130.0,1.30426512]
[1759246769380,0.1104687,113140.0,113130.0,1.30426512]
[1759246769792,0.1104687,113140.0,113130.0,0.8851465]
[1759246769991,0.52958732,113140.0,113130.0,0.5243465]
[1759246771783,0.52958732,113140.0,113130.0,0.1243465]
[1759246771988,0.53942732,113140.0,113130.0,0.18778721]
[1759246772188,0.53942732,113140.0,113130.0,0.1235465]
[1759246772489,0.53942732,113140.0,113130.0,0.1239465]
[1759246772989,0.53942732,113140.0,113130.0,0.17158067]
[1759246773498,0.52958732,113140.0,113130.0,0.17158067]
[1759246774584,0.1104687,113140.0,113130.0,0.17158067]
[1759246774788,0.52958732,113140.0,113130.0,0.17158067]
[1759246775190,0.53942732,113140.0,113130.0,0.17158067]
[1759246775388,0.53942732,113140.0,113130.0,0.08321417]
[1759246775589,0.53942732,113140.0,113130.0,0.06905417]
[1759246775791,0.53942732,113140.0,113130.0,0.04803417]
[1759246775990,0.90022732,113140.0,113130.0,0.06945417]
[1759246776189,1.30022732,113140.0,113130.0,0.04763417]
[1759246776390,1.99934594,113140.0,113130.0,0.0004]
[1759246776698,0.1231672,113130.0,113120.0,0.04772181]
[1759246776896,2.16516444,113130.0,113120.0,0.04852181]
[1759246777795,2.56516444,113130.0,113120.0,0.00088764]
[1759246778196,2.56516444,113130.0,113120.0,8.764e-05]
[1759246778398,1.72220444,113130.0,113120.0,0.00048764]
[1759246778599,2.56512444,113130.0,113120.0,0.00048764]
[1759246779102,2.56512444,113130.0,113120.0,8.764e-05]
[1759246779302,2.56512444,113130.0,113120.0,0.00048764]
[1759246779500,2.16512444,113130.0,113120.0,0.00048764]
[1759246781104,2.56512444,113130.0,113120.0,0.00048764]
[1759246781907,2.16512444,113130.0,113120.0,0.00048764]
[1759246782203,2.56512444,113130.0,113120.0,0.00048764]
[1759246782605,2.85512444,113130.0,113120.0,8.764e-05]
[1759246782797,2.01220444,113130.0,113120.0,8.764e-05]
[1759246782992,2.56508444,113130.0,113120.0,0.00048764]
[1759246783898,1.72220444,113130.0,113120.0,0.00048764]
[1759246784200,2.56508444,113130.0,113120.0,0.00048764]
[1759246784405,2.56504444,113130.0,113120.0,0.00048764]
[1759246785311,1.72220444,113130.0,113120.0,0.00048764]
[1759246785509,2.56504444,113130.0,113120.0,0.00048764]
[1759246788508,1.72220444,113130.0,113120.0,0.00048764]
[1759246788705,2.56504444,113130.0,113120.0,0.00048764]
[1759246791907,1.72220444,113130.0,113120.0,0.00048764]
[1759246792110,1.72220444,113130.0,113120.0,0.02193764]
[1759246792311,2.16488444,113130.0,113120.0,0.02193764]
[1759246792613,2.16488444,113130.0,113120.0,0.00048764]
[1759246795410,2.16488444,113130.0,113120.0,0.02193764]
[1759246796220,2.16488444,113130.0,113120.0,0.00048764]
[1759246796811,1.32220444,113130.0,113120.0,0.02193764]
[1759246797118,1.32220444,113130.0,113120.0,0.03535764]
[1759246797119,1.74564582,113130.0,113120.0,0.03535764]
[1759246797306,2.16476444,113130.0,113120.0,0.03535764]
[1759246797512,2.16476444,113130.0,113120.0,0.02193764]
[1759246797706,2.16476444,113130.0,113120.0,0.00048764]
[1759246798418,2.16476444,113130.0,113120.0,0.0322437]
[1759246798820,2.16476444,113130.0,113120.0,0.0536937]
[1759246800117,1.32220444,113130.0,113120.0,0.0536937]
[1759246800316,2.16464444,113130.0,113120.0,0.0536937]
[1759246801111,2.16464444,113130.0,113120.0,0.0671137]
[1759246801512,2.16464444,113130.0,113120.0,0.0536937]
[1759246801718,2.16464444,113130.0,113120.0,0.0322437]
[1759246803722,2.16464444,113130.0,113120.0,0.0318437]
[1759246803923,1.3264072,113130.0,113120.0,0.0322437]
[1759246804125,2.16464444,113130.0,113120.0,0.0322437]
[1759246806225,2.85464444,113130.0,113120.0,0.0322437]
[1759246806423,2.83464444,113130.0,113120.0,0.0322437]
[1759246806618,2.83464444,113130.0,113120.0,0.0318437]
[1759246807122,2.83464444,113130.0,113120.0,0.0322437]
[1759246807322,2.56464444,113130.0,113120.0,0.0322437]
[1759246807524,2.56432444,113130.0,113120.0,0.0322437]
[1759246807724,1.72220444,113130.0,113120.0,0.0322437]
[1759246807913,1.72220444,113130.0,113120.0,0.00048764]
[1759246808118,2.56428444,113130.0,113120.0,0.0322437]
[1759246808318,1.72220444,113130.0,113120.0,0.0322437]
[1759246808518,2.56428444,113130.0,113120.0,0.0322437]
[1759246809225,1.72220444,113130.0,113120.0,0.0322437]
[1759246809420,2.56424444,113130.0,113120.0,0.0322437]
[1759246810426,1.72220444,113130.0,113120.0,0.0322437]
[1759246810721,2.56420444,113130.0,113120.0,0.0322437]
[1759246811225,1.72220444,113130.0,113120.0,0.0322437]
[1759246811620,2.56416444,113130.0,113120.0,0.0536937]
[1759246811821,1.72220444,113130.0,113120.0,0.0536937]
[1759246812021,2.56412444,113130.0,113120.0,0.02193764]
[1759246812225,2.56412444,113130.0,113120.0,0.00048764]
[1759246812617,1.72220444,113130.0,113120.0,0.00048764]
[1759246812813,1.72220444,113130.0,113120.0,0.02193764]
[1759246812814,2.56412444,113130.0,113120.0,0.02193764]
[1759246813021,2.56412444,113130.0,113120.0,0.00048764]
[1759246813620,2.56408444,113130.0,113120.0,0.00048764]
[1759246814123,2.56404444,113130.0,113120.0,0.00048764]
[1759246815822,2.83404444,113130.0,113120.0,0.00048764]
[1759246816029,2.83404444,113130.0,113120.0,8.764e-05]
[1759246816619,1.7258072,113130.0,113120.0,8.764e-05]
[1759246816829,2.56404444,113130.0,113120.0,8.764e-05]
[1759246817026,2.56404444,113130.0,113120.0,0.00048764]
[1759246818431,1.72220444,113130.0,113120.0,0.00048764]
[1759246818927,2.56388444,113130.0,113120.0,0.00048764]
[1759246820329,1.72220444,113130.0,113120.0,0.00048764]
[1759246820521,2.56380444,113130.0,113120.0,0.00048764]
[1759246821230,2.56380444,113130.0,113120.0,0.02308764]
[1759246821624,2.56380444,113130.0,113120.0,0.00048764]
[1759246822232,2.56413254,113130.0,113120.0,0.00048764]
[1759246822426,0.90324987,113130.0,113120.0,0.0677737]
[1759246822626,1.3254872,113130.0,113120.0,0.0677737]
[1759246822825,0.90324987,113130.0,113120.0,0.0677737]
[1759246823131,0.89055987,113130.0,113120.0,0.4677737]
[1759246823331,1.73203987,113130.0,113120.0,0.93469054]
[1759246824029,1.73199987,113130.0,113120.0,0.51540787]
[1759246824531,1.73199987,113130.0,113120.0,0.60378277]
[1759246824731,1.73195987,113130.0,113120.0,0.60378277]
[1759246825332,1.73195987,113130.0,113120.0,0.51540787]
[1759246825624,1.73195987,113130.0,113120.0,0.48365181]
[1759246825625,1.37115987,113130.0,113120.0,0.48365181]
[1759246826030,1.37115987,113130.0,113120.0,0.57202671]
[1759246826528,1.37111987,113130.0,113120.0,0.93282671]
[1759246826724,0.1104772,113130.0,113120.0,1.35210938]
[1759246826921,0.9296872,113130.0,113120.0,1.79969859]
[1759246827121,1.34896987,113130.0,113120.0,1.38041592]
[1759246827326,1.34896987,113130.0,113120.0,1.31697521]
[1759246827734,0.0883672,113130.0,113120.0,1.31697521]
[1759246827927,1.34888987,113130.0,113120.0,1.31697521]
[1759246828329,1.34888987,113130.0,113120.0,1.36464713]
[1759246829234,1.34888987,113130.0,113120.0,1.31697521]
[1759246829431,1.34888987,113130.0,113120.0,1.36464041]
[1759246830735,0.0883672,113130.0,113120.0,1.36464041]
[1759246830922,0.1113155,113140.0,113130.0,0.1238971]
[1759246831122,0.0883655,113140.0,113130.0,0.98341846]
[1759246831334,0.0883655,113140.0,113130.0,1.38341846]
[1759246831335,0.9294055,113140.0,113130.0,1.38341846]
[1759246831634,0.9294055,113140.0,113130.0,1.35164497]
[1759246831635,0.50764817,113140.0,113130.0,1.35164497]
[1759246831823,0.53059817,113140.0,113130.0,1.35164497]
[1759246835038,0.53059817,113140.0,113130.0,1.36742048]
[1759246836336,0.1113155,113140.0,113130.0,1.30397977]
[1759246836539,0.53059817,113140.0,113130.0,1.30397977]
[1759246838339,0.53059817,113140.0,113130.0,1.35154661]
[1759246838738,0.94988084,113140.0,113130.0,0.93226394]
[1759246838939,0.94988084,113140.0,113130.0,1.35154661]
[1759246839541,0.94988084,113140.0,113130.0,0.95154661]
[1759246839741,0.94988084,113140.0,113130.0,0.59074661]
[1759246839940,0.94988084,113140.0,113130.0,0.95154661]
[1759246840437,0.53059817,113140.0,113130.0,0.95154661]
[1759246840943,1.37107817,113140.0,113130.0,0.95154661]
[1759246841334,1.37107817,113140.0,113130.0,0.59074661]
[1759246842139,1.37107817,113140.0,113130.0,0.17146394]
[1759246842446,1.37107817,113140.0,113130.0,0.59074661]
[1759246843245,0.53059817,113140.0,113130.0,0.59074661]
[1759246843446,0.1113155,113140.0,113130.0,0.59074661]
[1759246843749,0.53059817,113140.0,113130.0,0.59074661]
[1759246844054,0.94988084,113140.0,113130.0,0.17146394]
[1759246844243,0.94988084,113140.0,113130.0,0.50237951]
[1759246844549,0.94988084,113140.0,113130.0,0.20317238]
[1759246845250,0.94988084,113140.0,113130.0,0.11480528]
[1759246845450,0.94988084,113140.0,113130.0,0.08309684]
[1759246846549,1.79004084,113140.0,113130.0,0.17146394]
[1759246846849,1.79000084,113140.0,113130.0,0.17146394]
[1759246847050,1.79000084,113140.0,113130.0,0.17186394]
[1759246847751,1.37067817,113140.0,113130.0,0.59114661]
[1759246847950,0.1113155,113140.0,113130.0,0.59114661]
[1759246848151,0.53059817,113140.0,113130.0,0.59114661]
[1759246849345,1.79871415,113150.0,113130.0,0.59114661]
[1759246849346,1.46120415,113150.0,113140.0,0.1224893]
[1759246849553,0.59787415,113150.0,113140.0,1.04035379]
[1759246849851,0.59787415,113150.0,113140.0,1.00862148]
[1759246851344,0.59787415,113150.0,113140.0,0.96105464]
[1759246851850,0.62120415,113150.0,113140.0,0.96105464]
[1759246852151,1.04048682,113150.0,113140.0,0.54177197]
[1759246852351,1.04048682,113150.0,113140.0,1.3230893]
[1759246852552,1.04048682,113150.0,113140.0,0.03413]
[1759246852852,1.04048682,113150.0,113140.0,0.08175217]
[1759246853454,1.04048682,113150.0,113140.0,0.17011147]
[1759246856352,1.88004682,113150.0,113140.0,0.4832893]
[1759246856553,0.50952215,113150.0,113140.0,1.739511]
[1759246856752,0.50952215,113150.0,113140.0,2.22223438]
[1759246857053,0.1116691,113170.0,113160.0,0.1224736]
[1759246857248,0.02333,113170.0,113160.0,1.40124434]
[1759246857658,0.12871636,113180.0,113170.0,0.1224658]
[1759246857855,0.10964223,113180.0,113170.0,0.5735049]
[1759246858056,0.19837023,113180.0,113170.0,0.5735049]
[1759246858358,0.19797023,113180.0,113170.0,0.5735049]
[1759246858855,0.19837023,113180.0,113170.0,0.9343049]
[1759246859562,0.19837023,113180.0,113170.0,0.51502223]
[1759246859753,0.6176529,113180.0,113170.0,0.9343049]
[1759246859953,0.6176529,113180.0,113170.0,0.95019171]
[1759246860153,0.6176529,113180.0,113170.0,0.53090904]
[1759246860354,0.6176529,113180.0,113170.0,0.95019171]
[1759246860555,0.6176529,113180.0,113170.0,0.86185591]
[1759246862968,0.6176529,113180.0,113170.0,0.5327782]
[1759246863860,0.6176529,113180.0,113170.0,0.621114]
[1759246864359,0.6176529,113180.0,113170.0,0.57347076]
[1759246864864,0.19837023,113180.0,113170.0,0.981914]
[1759246865065,0.6176529,113180.0,113170.0,0.981914]
[1759246865266,0.6176529,113180.0,113170.0,0.93427076]
[1759246866065,0.6176529,113180.0,113170.0,0.48513496]
[1759246866760,1.79773557,113180.0,113170.0,0.06585229]
[1759246866963,1.81036557,113180.0,113170.0,0.03172229]
[1759246867157,1.81036557,113180.0,113170.0,0.03212229]
[1759246867564,1.81036557,113180.0,113170.0,0.03172229]
[1759246867759,1.81036557,113180.0,113170.0,0.05325229]
[1759246868071,1.43693557,113180.0,113170.0,0.06625229]
[1759246868268,2.63709557,113180.0,113170.0,0.06625229]
[1759246868572,1.79773557,113180.0,113170.0,0.06625229]
[1759246868765,2.63709557,113180.0,113170.0,0.06625229]
[1759246869071,1.79773557,113180.0,113170.0,0.15458809]
[1759246869364,2.63709557,113180.0,113170.0,0.03212229]
[1759246869564,2.63709557,113180.0,113170.0,0.0004]
[1759246870263,0.1116658,113170.0,113160.0,0.15419509]
[1759246870467,0.38413,113170.0,113160.0,0.57427776]
[1759246870769,0.44261267,113170.0,113160.0,0.93507776]
[1759246871266,0.89174847,113170.0,113160.0,0.15499589]
[1759246871465,0.53094847,113170.0,113160.0,0.93507856]
[1759246871665,0.53094847,113170.0,113160.0,0.57427856]
[1759246871864,0.53094847,113170.0,113160.0,0.15499589]
[1759246872470,0.02333,113170.0,113160.0,0.93507856]
[1759246872670,0.44261267,113170.0,113160.0,0.93507856]
[1759246873459,0.44261267,113170.0,113160.0,0.51579589]
[1759246873764,0.53094847,113170.0,113160.0,0.93507856]
[1759246873962,0.53094847,113170.0,113160.0,0.41485229]
[1759246874166,1.31103114,113170.0,113160.0,0.06665229]
[1759246874467,1.29174847,113170.0,113160.0,0.06665229]
[1759246874774,1.29174847,113170.0,113160.0,0.06585229]
[1759246875070,1.29174847,113170.0,113160.0,0.06625229]
[1759246875666,1.71103114,113170.0,113160.0,0.06625229]
[1759246876165,1.71103114,113170.0,113160.0,0.03413]
[1759246876365,1.29174847,113170.0,113160.0,0.03453]
[1759246877370,1.29174847,113170.0,113160.0,0.06625229]
[1759246878473,2.13106847,113170.0,113160.0,0.06625229]
[1759246878666,1.29174847,113170.0,113160.0,0.06625229]
[1759246879063,0.53094847,113170.0,113160.0,0.93467856]
[1759246879262,1.8168591,113180.0,113170.0,0.1234158]
[1759246879465,0.55825643,113180.0,113170.0,0.57442076]
[1759246879672,1.8164591,113180.0,113170.0,0.57442076]
[1759246880072,1.8168591,113180.0,113170.0,0.57442076]
[1759246880568,1.8168191,113180.0,113170.0,0.57442076]
[1759246881074,1.8168191,113180.0,113170.0,0.06680229]
[1759246881075,2.23610177,113180.0,113170.0,0.06680229]
[1759246881571,2.23610177,113180.0,113170.0,0.11444553]
[1759246881873,1.87530177,113180.0,113170.0,0.11444553]
[1759246882271,2.23610177,113180.0,113170.0,0.11444553]
[1759246882967,1.39753643,113180.0,113170.0,0.11444553]
[1759246883164,2.23610177,113180.0,113170.0,0.11444553]
[1759246883672,2.23610177,113180.0,113170.0,0.10094553]
[1759246883878,2.23610177,113180.0,113170.0,0.03172229]
[1759246884270,1.81640284,113180.0,113170.0,0.03172229]
[1759246884577,2.21640284,113180.0,113170.0,0.03172229]
[1759246886172,1.37712284,113180.0,113170.0,0.03172229]
[1759246886366,2.21632284,113180.0,113170.0,0.03212229]
[1759246889082,1.37712284,113180.0,113170.0,0.03212229]
[1759246889283,2.21632284,113180.0,113170.0,0.03212229]
[1759246889578,0.0883358,113170.0,113160.0,0.04764553]
[1759246889775,1.28686862,113170.0,113160.0,2.29e-06]
[1759246889976,1.28686862,113170.0,113160.0,0.00040229]
[1759246890176,1.70716221,113170.0,113160.0,0.00040229]
[1759246890371,1.70716221,113170.0,113160.0,2.29e-06]
[1759246890580,2.81602862,113170.0,113160.0,2.29e-06]
[1759246890882,0.0883436,113160.0,113150.0,0.04844324]
[1759246891083,2.12603642,113160.0,113150.0,0.04764324]
[1759246891383,2.12603642,113160.0,113150.0,0.04804324]
[1759246891582,2.12603642,113160.0,113150.0,0.04764324]
[1759246891779,1.28687642,113160.0,113150.0,0.04764324]
[1759246891972,2.12603642,113160.0,113150.0,0.04804324]
[1759246892174,2.30603642,113160.0,113150.0,0.04804324]
[1759246892376,2.30603642,113160.0,113150.0,0.0004]
[1759246892377,2.70603642,113160.0,113150.0,0.0004]
[1759246892576,0.0883515,113150.0,113140.0,0.04764324]
[1759246892779,0.86801791,113150.0,113140.0,0.04764324]
[1759246892980,0.4491515,113150.0,113140.0,0.06194324]
[1759246893283,1.70717791,113150.0,113140.0,0.08352324]
[1759246893783,1.70717791,113150.0,113140.0,0.06194324]
[1759246894086,0.86801791,113150.0,113140.0,0.06194324]
[1759246894286,1.70717791,113150.0,113140.0,0.06194324]
[1759246894486,0.86801791,113150.0,113140.0,0.06114324]
[1759246894686,1.70717791,113150.0,113140.0,0.06114324]
[1759246894887,1.70717791,113150.0,113140.0,0.06314324]
[1759246895088,0.86801791,113150.0,113140.0,0.08472324]
[1759246895386,1.70717791,113150.0,113140.0,0.08472324]
[1759246895591,1.70717791,113150.0,113140.0,0.03708]
[1759246897487,0.86801791,113150.0,113140.0,0.03708]
[1759246897688,0.86801791,113150.0,113140.0,0.1254392]
[1759246897877,0.4491515,113150.0,113140.0,0.1254392]
[1759246898186,1.70717791,113150.0,113140.0,0.1254392]
[1759246898684,1.70717791,113150.0,113140.0,0.03708]
[1759246899589,1.34637791,113150.0,113140.0,0.0155]
[1759246899886,1.70717791,113150.0,113140.0,0.0155]
[1759246902391,1.70717791,113150.0,113140.0,0.03708]
[1759246903089,0.86801791,113150.0,113140.0,0.03708]
[1759246903287,1.70713791,113150.0,113140.0,0.03708]
[1759246903487,1.70709791,113150.0,113140.0,0.1254392]
[1759246903688,1.70709791,113150.0,113140.0,0.03708]
[1759246903883,0.4491515,113150.0,113140.0,0.03708]
[1759246904085,1.70709791,113150.0,113140.0,0.03708]
[1759246905594,1.70709791,113150.0,113140.0,0.0155]
[1759246906095,1.70709791,113150.0,113140.0,0.03708]
[1759246907595,0.86801791,113150.0,113140.0,0.03708]
[1759246907897,1.70705791,113150.0,113140.0,0.03708]
[1759246909085,1.70705791,113150.0,113140.0,0.0155]
[1759246909286,1.70705791,113150.0,113140.0,0.002]
[1759246909694,1.70705791,113150.0,113140.0,0.0024]
[1759246909903,1.86705791,113150.0,113140.0,0.0024]
[1759246910094,1.70705791,113150.0,113140.0,0.0024]
[1759246910291,1.70701791,113150.0,113140.0,0.0024]
[1759246910491,1.2881115,113150.0,113140.0,0.03822]
[1759246910700,1.70697791,113150.0,113140.0,0.03822]
[1759246911198,0.86801791,113150.0,113140.0,0.03822]
[1759246911396,1.2881115,113150.0,113140.0,0.03822]
[1759246911599,0.86801791,113150.0,113140.0,0.03822]
[1759246911800,1.70697791,113150.0,113140.0,0.03822]
[1759246912100,0.86801791,113150.0,113140.0,0.03822]
[1759246912302,1.70697791,113150.0,113140.0,0.03822]
[1759246912601,0.86801791,113150.0,113140.0,0.03822]
[1759246912802,1.70693791,113150.0,113140.0,0.03822]
[1759246914704,1.70693791,113150.0,113140.0,0.0024]
[1759246915106,1.70693791,113150.0,113140.0,0.01562]
[1759246915306,1.70689791,113150.0,113140.0,0.03822]
[1759246916003,0.86801791,113150.0,113140.0,0.03822]
[1759246916200,1.70689791,113150.0,113140.0,0.03822]
[1759246916510,1.70689791,113150.0,113140.0,0.1265792]
[1759246916511,1.2880315,113150.0,113140.0,0.1265792]
[1759246916711,1.70689791,113150.0,113140.0,0.03822]
[1759246917006,1.70685791,113150.0,113140.0,0.1265792]
[1759246917310,1.70685791,113150.0,113140.0,0.08586324]
[1759246917814,0.86801791,113150.0,113140.0,0.17422244]
[1759246918007,1.2879915,113150.0,113140.0,0.57422244]
[1759246918205,1.2879915,113150.0,113140.0,0.48586324]
[1759246919012,1.70685791,113150.0,113140.0,0.48586324]
[1759246920210,1.70685791,113150.0,113140.0,0.0950525]
[1759246920711,1.70685791,113150.0,113140.0,0.08546324]
[1759246920912,1.70685791,113150.0,113140.0,0.08586324]
[1759246922209,1.70685791,113150.0,113140.0,0.06326324]
[1759246922711,1.70685791,113150.0,113140.0,0.08586324]
[1759246923214,1.70685791,113150.0,113140.0,0.06326324]
[1759246924009,1.70685791,113150.0,113140.0,0.08145025]
[1759246924406,1.70685791,113150.0,113140.0,0.06326324]
[1759246924710,1.70685791,113150.0,113140.0,0.08586324]
[1759246924913,0.86801791,113150.0,113140.0,0.08586324]
[1759246925112,1.70665791,113150.0,113140.0,0.11767414]
[1759246925613,1.70665791,113150.0,113140.0,0.09507414]
[1759246926311,1.99665791,113150.0,113140.0,0.09507414]
[1759246926519,2.10665791,113150.0,113140.0,0.0342109]
[1759246926704,2.10665791,113150.0,113140.0,0.0338109]
[1759246927412,1.26801791,113150.0,113140.0,0.0338109]
[1759246927620,1.26801791,113150.0,113140.0,0.0700309]
[1759246927914,2.10657791,113150.0,113140.0,0.0474309]
[1759246928113,1.26801791,113150.0,113140.0,0.0474309]
[1759246928517,2.10657791,113150.0,113140.0,0.0474309]
[1759246930509,2.10657791,113150.0,113140.0,0.0342109]
[1759246934021,2.10657791,113150.0,113140.0,0.0338109]
[1759246934225,2.40657791,113150.0,113140.0,0.002]
[1759246934523,0.0883592,113140.0,113130.0,0.0326109]
[1759246934722,0.088367,113130.0,113120.0,0.03991999]
[1759246934922,1.70643341,113130.0,113120.0,0.03991999]
[1759246935220,2.12529982,113130.0,113120.0,0.03991999]
[1759246936022,1.287527,113130.0,113120.0,0.15089479]
[1759246936228,1.70639341,113130.0,113120.0,0.15089479]
[1759246936422,0.86803341,113130.0,113120.0,0.06251999]
[1759246936617,1.70639341,113130.0,113120.0,0.06251999]
[1759246937928,1.70639341,113130.0,113120.0,0.15089479]
[1759246938226,1.70639341,113130.0,113120.0,0.06251999]
[1759246938717,0.86803341,113130.0,113120.0,0.06251999]
[1759246938923,1.70635341,113130.0,113120.0,0.04868764]
[1759246939727,1.70631341,113130.0,113120.0,0.04868764]
[1759246939920,0.86803341,113130.0,113120.0,0.13706244]
[1759246940119,1.70631341,113130.0,113120.0,0.13706244]
[1759246941221,0.86803341,113130.0,113120.0,0.13706244]
[1759246941430,0.50723341,113130.0,113120.0,0.13706244]
[1759246941628,1.34547341,113130.0,113120.0,0.13706244]
[1759246945727,0.50723341,113130.0,113120.0,0.13706244]
[1759246946029,0.93982976,113140.0,113130.0,0.124697]
[1759246946334,2.19729993,113140.0,113130.0,0.124697]
[1759246946523,1.35917993,113140.0,113130.0,0.124697]
[1759246946723,1.77815164,113140.0,113130.0,0.54380529]
[1759246947125,1.77815164,113140.0,113130.0,0.124697]
[1759246947430,1.77815164,113140.0,113130.0,0.45543829]
[1759246948226,0.94007164,113140.0,113130.0,0.54380529]
[1759246948423,1.35900335,113140.0,113130.0,0.54380529]
[1759246948623,1.77811164,113140.0,113130.0,0.94380529]
[1759246948835,0.94007164,113140.0,113130.0,0.94380529]
[1759246949035,1.77807164,113140.0,113130.0,0.94380529]
[1759246949232,1.77807164,113140.0,113130.0,0.524697]
[1759246949445,1.77807164,113140.0,113130.0,0.85543829]
[1759246949735,1.77807164,113140.0,113130.0,0.43633]
[1759246949936,2.21547164,113140.0,113130.0,0.43633]
[1759246950737,2.21547164,113140.0,113130.0,0.524697]
[1759246951037,2.21539164,113140.0,113130.0,0.94380529]
[1759246952136,1.37747164,113140.0,113130.0,0.94380529]
[1759246952336,2.21535164,113140.0,113130.0,0.94380529]
[1759246952635,1.85455164,113140.0,113130.0,0.94380529]
[1759246952835,1.01667164,113140.0,113130.0,0.94380529]
[1759246953036,1.85451164,113140.0,113130.0,0.94380529]
[1759246953226,1.43540335,113140.0,113130.0,0.94380529]
[1759246953430,1.85451164,113140.0,113130.0,0.94380529]
[1759246954438,1.01667164,113140.0,113130.0,0.99148133]
[1759246954638,1.85447164,113140.0,113130.0,0.99148133]
[1759246955834,0.92831244,113140.0,113130.0,0.99148133]
[1759246956026,0.59756335,113140.0,113130.0,1.30460529]
[1759246956231,1.34692415,113140.0,113130.0,1.30460529]
[1759246956635,0.59756335,113140.0,113130.0,1.30460529]
[1759246956827,0.50920415,113140.0,113130.0,1.30460529]
[1759246957128,0.59756335,113140.0,113130.0,1.30460529]
[1759246957336,0.59756335,113140.0,113130.0,1.35227542]
[1759246958736,0.50920415,113140.0,113130.0,1.30460529]
[1759246959333,0.50920415,113140.0,113130.0,1.72371358]
[1759246959532,0.50920415,113140.0,113130.0,1.32371358]
[1759246959737,0.50920415,113140.0,113130.0,2.16123358]
[1759246960035,0.50920415,113140.0,113130.0,1.32371358]
[1759246960231,0.50920415,113140.0,113130.0,2.16123358]
[1759246960839,0.49483505,113140.0,113130.0,1.3872379]
[1759246961038,0.49483505,113140.0,113130.0,2.2247179]
[1759246961642,0.49483505,113140.0,113130.0,1.3872379]
[1759246961839,0.49483505,113140.0,113130.0,2.2246779]
[1759246963750,0.46107003,113140.0,113130.0,2.56115358]
[1759246963945,0.42607003,113140.0,113130.0,1.7872379]
[1759246964243,0.42607003,113140.0,113130.0,2.6245579]
[1759246964649,0.42607003,113140.0,113130.0,2.6245179]
[1759246964835,0.35607003,113140.0,113130.0,2.62448333]
[1759246965140,0.11548854,113180.0,113170.0,0.1108658]
[1759246965341,0.11548854,113180.0,113170.0,1.72801409]
[1759246965841,0.08137854,113180.0,113170.0,2.56088238]
[1759246966046,0.44733829,113190.0,113180.0,0.088328]
[1759246966244,0.44733829,113190.0,113180.0,0.52996629]
[1759246966545,0.02823,113190.0,113180.0,0.57755763]
[1759246966845,0.44733829,113190.0,113180.0,0.57755763]
[1759246967047,0.44773829,113190.0,113180.0,0.57755763]
[1759246967234,0.45982529,113190.0,113180.0,0.52996629]
[1759246967642,0.040717,113190.0,113180.0,1.37068592]
[1759246968144,0.040317,113190.0,113180.0,1.35746592]
[1759246968341,0.040717,113190.0,113180.0,1.72784629]
[1759246968537,0.040717,113190.0,113180.0,2.14695458]
[1759246968737,0.1290372,113190.0,113180.0,1.30987458]
[1759246969148,0.1290372,113190.0,113180.0,2.14687458]
[1759246969345,0.040717,113190.0,113180.0,1.72776629]
[1759246970353,0.11257432,113190.0,113180.0,1.72776629]
[1759246971044,0.11257432,113190.0,113180.0,2.14687458]
[1759246971251,0.11257432,113190.0,113180.0,1.30987458]
[1759246971553,0.11257432,113190.0,113180.0,2.14671458]
[1759246972354,0.11257432,113190.0,113180.0,1.30987458]
[1759246972547,0.11257432,113190.0,113180.0,2.14667458]
[1759246974950,0.11257432,113190.0,113180.0,2.15989458]
[1759246975253,0.10536432,113190.0,113180.0,2.15989458]
[1759246975446,0.08434432,113190.0,113180.0,2.15989458]
[1759246975646,0.07185732,113190.0,113180.0,2.97900287]
[1759246975842,0.0003,113200.0,113190.0,0.1246802]
[1759246976146,0.1106024,113200.0,113190.0,0.54378849]
[1759246976346,0.02269,113200.0,113190.0,1.38034849]
[1759246976546,0.02229,113200.0,113190.0,1.38034849]
[1759246976743,0.02269,113200.0,113190.0,1.38034849]
[1759246977255,0.1240324,113200.0,113190.0,0.54378849]
[1759246977445,0.1240324,113200.0,113190.0,1.38026849]
[1759246977645,0.1240324,113200.0,113190.0,0.54378849]
[1759246977956,0.02269,113200.0,113190.0,1.38026849]
[1759246978155,0.0007,113200.0,113190.0,1.38026849]
[1759246978355,0.01291375,113200.0,113190.0,1.38026849]
[1759246978548,0.01291375,113200.0,113190.0,1.79937678]
[1759246978954,0.01291375,113200.0,113190.0,0.96289678]
[1759246979153,0.03490375,113200.0,113190.0,1.38014849]
[1759246979651,0.03490375,113200.0,113190.0,1.72369678]
[1759246979652,0.01291375,113200.0,113190.0,1.72369678]
[1759246979859,0.0007,113200.0,113190.0,2.56001678]
[1759246980059,0.01228788,113200.0,113190.0,1.72369678]
[1759246980262,0.01268788,113200.0,113190.0,2.56001678]
[1759246980662,0.0007,113200.0,113190.0,2.57790745]
[1759246981861,0.01230846,113210.0,113200.0,0.1148898]
[1759246982161,0.11029,113220.0,113210.0,0.1249646]
[1759246982456,0.11029,113220.0,113210.0,1.38023289]
[1759246982663,0.02199,113220.0,113210.0,1.38023289]
[1759246982862,0.4849141,113230.0,113220.0,0.1111568]
[1759246983058,0.03502,113230.0,113220.0,1.31017338]
[1759246983358,0.09449013,113230.0,113220.0,1.32339338]
[1759246983657,0.02199,113230.0,113220.0,1.32339338]
[1759246983861,0.01253556,113230.0,113220.0,2.15943338]
[1759246984063,0.84016573,113250.0,113240.0,0.1111412]
[1759246984361,0.84016573,113250.0,113240.0,0.53024949]
[1759246984562,0.84016573,113250.0,113240.0,0.94935778]
[1759246984962,1.25927402,113250.0,113240.0,0.53024949]
[1759246985163,0.84016573,113250.0,113240.0,0.1111412]
[1759246985357,0.84016573,113250.0,113240.0,0.44196829]
[1759246985558,0.84056573,113250.0,113240.0,0.53024949]
[1759246985865,0.84016573,113250.0,113240.0,0.1111412]
[1759246986065,1.25967402,113250.0,113240.0,0.53024949]
[1759246986459,1.27161896,113250.0,113240.0,0.53024949]
[1759246987159,1.34333936,113250.0,113240.0,0.53024949]
[1759246987362,0.91120107,113250.0,113240.0,0.53024949]
[1759246987566,0.92383107,113250.0,113240.0,0.94935778]
[1759246988064,0.92423107,113250.0,113240.0,0.1111412]
[1759246988267,0.92423107,113250.0,113240.0,0.94935778]
[1759246988563,0.56816104,113250.0,113240.0,0.94935778]
[1759246989865,0.56816104,113250.0,113240.0,0.86107658]
[1759246990164,0.56816104,113250.0,113240.0,0.94935778]
[1759246991866,0.56816104,113250.0,113240.0,0.86107658]
[1759246992164,0.98726933,113250.0,113240.0,0.44196829]
[1759246992366,0.56816104,113250.0,113240.0,0.44196829]
[1759246992668,0.98726933,113250.0,113240.0,0.44196829]
[1759246993781,0.123309,113230.0,113220.0,1.36558499]
[1759246993958,0.54241729,113230.0,113220.0,1.36558499]
[1759246994277,0.123309,113230.0,113220.0,1.78469328]
[1759246994456,0.123309,113230.0,113220.0,2.15871328]
[1759246994656,0.02199,113230.0,113220.0,2.15871328]
[1759246994960,0.110279,113230.0,113220.0,2.15871328]